[Event "*** Titled Tuesday 3|2 Blitz"]
[Site "Chess.com"]
[Date "2017.03.07"]
[Round "4"]
[White "popov_m"]
[Black "CM_Perligero"]
[Result "1-0"]
[WhiteElo "2404"]
[BlackElo "2129"]
[TimeControl "180+2"]
[EndTime "13:58:07 PST"]
[Termination "popov_m won by resignation"]

1. d4 {[%clk 0:03:02]} 1... d5 {[%clk 0:02:51.5]} 2. Bf4 {[%clk 0:03:02.2]} 2...
c6 {[%clk 0:02:48.2]} 3. e3 {[%clk 0:03:02.7]} 3... e6 {[%clk 0:02:49]} 4. Nf3
{[%clk 0:02:58.9]} 4... Nf6 {[%clk 0:02:50.5]} 5. h3 {[%clk 0:02:54.5]} 5...
Nbd7 {[%clk 0:02:50.2]} 6. Nbd2 {[%clk 0:02:53.5]} 6... c5 {[%clk 0:02:50.2]} 7.
c3 {[%clk 0:02:54.5]} 7... Nb6 {[%clk 0:02:42.2]} 8. Bd3 {[%clk 0:02:54.3]} 8...
Be7 {[%clk 0:02:39.7]} 9. Qe2 {[%clk 0:02:53.2]} 9... Bd7 {[%clk 0:02:38.9]} 10.
Ne5 {[%clk 0:02:53.2]} 10... c4 {[%clk 0:02:35.6]} 11. Bc2 {[%clk 0:02:50.5]}
11... a5 {[%clk 0:02:21]} 12. g4 {[%clk 0:02:34.1]} 12... h6 {[%clk 0:02:17.4]}
13. Rg1 {[%clk 0:02:33.5]} 13... g5 {[%clk 0:02:05.3]} 14. Bg3 {[%clk
0:02:33.5]} 14... a4 {[%clk 0:02:03.1]} 15. a3 {[%clk 0:02:32.5]} 15... Bc6
{[%clk 0:01:51.6]} 16. f4 {[%clk 0:02:29.4]} 16... Nbd7 {[%clk 0:01:47.5]} 17.
f5 {[%clk 0:02:28.8]} 17... Nxe5 {[%clk 0:01:35.3]} 18. Bxe5 {[%clk 0:02:05.6]}
18... Qd7 {[%clk 0:01:21.5]} 19. fxe6 {[%clk 0:01:59.8]} 19... fxe6 {[%clk
0:01:20.1]} 20. Bg6+ {[%clk 0:01:48.3]} 20... Kd8 {[%clk 0:01:21.2]} 21. Rf1
{[%clk 0:01:49.6]} 21... Rf8 {[%clk 0:01:20.8]} 22. Rf2 {[%clk 0:01:34.2]} 22...
Kc8 {[%clk 0:01:13]} 23. Qf1 {[%clk 0:01:23.4]} 23... Qd8 {[%clk 0:01:12.8]} 24.
O-O-O {[%clk 0:01:24.1]} 24... b6 {[%clk 0:01:05.9]} 25. e4 {[%clk 0:00:58.5]}
25... Kb7 {[%clk 0:01:02]} 26. exd5 {[%clk 0:00:58.7]} 26... Nxd5 {[%clk
0:00:55.2]} 27. Rxf8 {[%clk 0:00:45.9]} 27... Qxf8 {[%clk 0:00:38.9]} 28. Nxc4
{[%clk 0:00:46.8]} 28... b5 {[%clk 0:00:36]} 29. Qxf8 {[%clk 0:00:41.5]} 29...
Rxf8 {[%clk 0:00:35.5]} 30. Nd6+ {[%clk 0:00:42.8]} 30... Bxd6 {[%clk
0:00:35.9]} 31. Bxd6 {[%clk 0:00:44.7]} 31... Rf3 {[%clk 0:00:30.7]} 32. Re1
{[%clk 0:00:31.4]} 32... Ne3 {[%clk 0:00:28.6]} 33. Bd3 {[%clk 0:00:21.9]} 33...
Rxh3 {[%clk 0:00:24.2]} 34. Bf8 {[%clk 0:00:23.2]} 34... Bd7 {[%clk 0:00:21.8]}
35. Bg7 {[%clk 0:00:22.8]} 35... Nxg4 {[%clk 0:00:21.8]} 36. Be4+ {[%clk
0:00:22.4]} 36... Kb6 {[%clk 0:00:21.7]} 37. Rf1 {[%clk 0:00:21.2]} 37... Re3
{[%clk 0:00:15.7]} 38. Bg6 {[%clk 0:00:22]} 38... Re2 {[%clk 0:00:11.8]} 39. Bf8
{[%clk 0:00:21.4]} 39... Ne3 {[%clk 0:00:11]} 40. Rf7 {[%clk 0:00:19.1]} 40...
Kc7 {[%clk 0:00:10.3]} 41. Bxh6 {[%clk 0:00:16.7]} 41... g4 {[%clk 0:00:09.2]}
42. Bf4+ {[%clk 0:00:17.2]} 42... Kd8 {[%clk 0:00:08.1]} 43. Bd6 {[%clk
0:00:14.8]} 43... Be8 {[%clk 0:00:03.4]} 44. Rf8 {[%clk 0:00:06.2]} 44... Kd7
{[%clk 0:00:04.7]} 45. Bd3 {[%clk 0:00:05.2]} 45... Kxd6 {[%clk 0:00:05.1]} 46.
Bxe2 {[%clk 0:00:06.4]} 46... Bg6 {[%clk 0:00:05.5]} 47. Kd2 {[%clk 0:00:07.1]}
47... Nc4+ {[%clk 0:00:03.3]} 48. Bxc4 {[%clk 0:00:08.3]} 48... bxc4 {[%clk
0:00:04.4]} 49. Ke3 {[%clk 0:00:09.9]} 49... Bf5 {[%clk 0:00:04.5]} 50. Kf4
{[%clk 0:00:11.3]} 50... Kd5 {[%clk 0:00:04.9]} 51. Rd8+ {[%clk 0:00:10]} 51...
Kc6 {[%clk 0:00:05.9]} 52. Ra8 {[%clk 0:00:11.6]} 52... Kb5 {[%clk 0:00:06.9]}
53. Rb8+ {[%clk 0:00:13]} 53... Kc6 {[%clk 0:00:07.9]} 54. Rb4 {[%clk
0:00:14.1]} 54... Bd3 {[%clk 0:00:04.6]} 55. Kxg4 {[%clk 0:00:13.8]} 55... Kd5
{[%clk 0:00:04.5]} 56. Kf4 {[%clk 0:00:15.1]} 56... Bc2 {[%clk 0:00:05.5]} 57.
Rb5+ {[%clk 0:00:14.7]} 57... Kd6 {[%clk 0:00:06.2]} 58. Rc5 {[%clk 0:00:15.3]}
58... Bb3 {[%clk 0:00:07]} 59. Kg5 {[%clk 0:00:14.2]} 59... Ba2 {[%clk
0:00:07.5]} 60. Kf6 {[%clk 0:00:14]} 60... Bb3 {[%clk 0:00:08.6]} 61. Kf7 {[%clk
0:00:15.2]} 61... Kd7 {[%clk 0:00:07.4]} 62. Re5 {[%clk 0:00:14.3]} 62... Bc2
{[%clk 0:00:06.4]} 63. Rxe6 {[%clk 0:00:15.3]} 63... Bf5 {[%clk 0:00:05.7]} 64.
Re5 {[%clk 0:00:15.9]} 64... Bd3 {[%clk 0:00:05.6]} 65. Kf6 {[%clk 0:00:14.5]}
65... Kd6 {[%clk 0:00:06.2]} 66. Rb5 {[%clk 0:00:15.1]} 66... Bc2 {[%clk
0:00:05.5]} 67. Rb4 {[%clk 0:00:16.3]} 67... Bb3 {[%clk 0:00:05.9]} 68. Kf5
{[%clk 0:00:17.7]} 68... Kd5 {[%clk 0:00:06.6]} 69. Kf4 {[%clk 0:00:18.2]} 69...
Kd6 {[%clk 0:00:06.8]} 70. Ke3 {[%clk 0:00:19.4]} 70... Bc2 {[%clk 0:00:08]} 71.
Rxc4 {[%clk 0:00:19.1]} 71... Kd5 {[%clk 0:00:08.4]} 72. Rc5+ {[%clk 0:00:20.4]}
72... Kd6 {[%clk 0:00:08.9]} 73. c4 {[%clk 0:00:21.9]} 73... Bb3 {[%clk
0:00:08.9]} 74. Kd2 {[%clk 0:00:23.3]} 1-0

[Event "*** Titled Tuesday 3|2 Blitz"]
[Site "Chess.com"]
[Date "2017.03.07"]
[Round "4"]
[White "GMOratovsky"]
[Black "Anton_Demchenko"]
[Result "0-1"]
[WhiteElo "2403"]
[BlackElo "2613"]
[TimeControl "180+2"]
[EndTime "14:00:03 PST"]
[Termination "Anton_Demchenko won on time"]

1. e4 {[%clk 0:03:02]} 1... e5 {[%clk 0:02:59.9]} 2. Nf3 {[%clk 0:03:00.8]} 2...
Nc6 {[%clk 0:03:01.4]} 3. d4 {[%clk 0:03:00.9]} 3... exd4 {[%clk 0:03:01.9]} 4.
Nxd4 {[%clk 0:03:02.8]} 4... Nf6 {[%clk 0:03:03]} 5. Nxc6 {[%clk 0:03:03.3]}
5... bxc6 {[%clk 0:03:04.9]} 6. e5 {[%clk 0:03:04.4]} 6... Qe7 {[%clk
0:03:06.3]} 7. Qe2 {[%clk 0:03:04.9]} 7... Nd5 {[%clk 0:03:07.9]} 8. c4 {[%clk
0:03:06.1]} 8... Ba6 {[%clk 0:03:08.8]} 9. Qe4 {[%clk 0:03:06.2]} 9... Nb6
{[%clk 0:02:33.7]} 10. Nc3 {[%clk 0:03:05.4]} 10... Bb7 {[%clk 0:02:14]} 11. Bd3
{[%clk 0:02:53.1]} 11... O-O-O {[%clk 0:02:14.5]} 12. O-O {[%clk 0:02:50.7]}
12... g6 {[%clk 0:01:55.7]} 13. Re1 {[%clk 0:02:48.7]} 13... Bg7 {[%clk
0:01:55.1]} 14. a4 {[%clk 0:02:32.6]} 14... d5 {[%clk 0:01:34.8]} 15. exd6
{[%clk 0:02:11.8]} 15... Qxd6 {[%clk 0:01:20]} 16. Bf1 {[%clk 0:01:57]} 16... c5
{[%clk 0:01:16.2]} 17. Qe7 {[%clk 0:01:48.2]} 17... Qxe7 {[%clk 0:01:03.1]} 18.
Rxe7 {[%clk 0:01:50.1]} 18... Rd7 {[%clk 0:01:04.6]} 19. Rxd7 {[%clk 0:01:44.6]}
19... Nxd7 {[%clk 0:01:06.5]} 20. Be3 {[%clk 0:01:39.2]} 20... Re8 {[%clk
0:00:55.8]} 21. a5 {[%clk 0:01:38.9]} 21... Re6 {[%clk 0:00:44.3]} 22. g3 {[%clk
0:00:55.8]} 22... a6 {[%clk 0:00:40.9]} 23. Rd1 {[%clk 0:00:54.9]} 23... Bxc3
{[%clk 0:00:33.4]} 24. bxc3 {[%clk 0:00:55.4]} 24... Ne5 {[%clk 0:00:35]} 25.
Bg2 {[%clk 0:00:43.3]} 25... Bxg2 {[%clk 0:00:34.4]} 26. Kxg2 {[%clk 0:00:45.2]}
26... Nxc4 {[%clk 0:00:26.4]} 27. Bxc5 {[%clk 0:00:46.4]} 27... Nxa5 {[%clk
0:00:27.5]} 28. Ra1 {[%clk 0:00:40.1]} 28... Nc4 {[%clk 0:00:22.3]} 29. h4
{[%clk 0:00:36.4]} 29... Rc6 {[%clk 0:00:18.3]} 30. Bd4 {[%clk 0:00:37.1]} 30...
Nd6 {[%clk 0:00:19.3]} 31. Kf3 {[%clk 0:00:33.1]} 31... Nb5 {[%clk 0:00:19.7]}
32. Ke4 {[%clk 0:00:28.5]} 32... Kb7 {[%clk 0:00:21]} 33. Rb1 {[%clk 0:00:26.4]}
33... Kc8 {[%clk 0:00:16.7]} 34. Ra1 {[%clk 0:00:23.7]} 34... h5 {[%clk
0:00:17.7]} 35. Kd5 {[%clk 0:00:23.7]} 35... Rd6+ {[%clk 0:00:17.6]} 36. Ke4
{[%clk 0:00:24.4]} 36... Re6+ {[%clk 0:00:18.3]} 37. Kd3 {[%clk 0:00:24.6]}
37... Kd7 {[%clk 0:00:18.7]} 38. Bg7 {[%clk 0:00:22.6]} 38... Rd6+ {[%clk
0:00:19.2]} 39. Ke3 {[%clk 0:00:21.7]} 39... Rc6 {[%clk 0:00:19.1]} 40. Kd3
{[%clk 0:00:22]} 40... Ke7 {[%clk 0:00:16.7]} 41. Bd4 {[%clk 0:00:21]} 41... Rd6
{[%clk 0:00:15.2]} 42. Ke4 {[%clk 0:00:21]} 42... Re6+ {[%clk 0:00:16.3]} 43.
Kd3 {[%clk 0:00:21.9]} 43... Kd7 {[%clk 0:00:15.7]} 44. Rb1 {[%clk 0:00:18.1]}
44... Nd6 {[%clk 0:00:12.8]} 45. Ra1 {[%clk 0:00:18.2]} 45... Nb7 {[%clk
0:00:12.2]} 46. Kc4 {[%clk 0:00:17.8]} 46... Rc6+ {[%clk 0:00:12.6]} 47. Kd3
{[%clk 0:00:18.5]} 47... Nd8 {[%clk 0:00:13.7]} 48. Ke4 {[%clk 0:00:19.5]} 48...
Ne6 {[%clk 0:00:14.7]} 49. Be5 {[%clk 0:00:20.8]} 49... Rb6 {[%clk 0:00:07.9]}
50. Rd1+ {[%clk 0:00:21.5]} 50... Ke7 {[%clk 0:00:09.3]} 51. Ra1 {[%clk
0:00:22.3]} 51... Rc6 {[%clk 0:00:08.6]} 52. Ra2 {[%clk 0:00:21.7]} 52... Rb6
{[%clk 0:00:09.2]} 53. Ra1 {[%clk 0:00:20.8]} 53... Kd7 {[%clk 0:00:10]} 54.
Rd1+ {[%clk 0:00:20.9]} 54... Kc6 {[%clk 0:00:11.4]} 55. Ra1 {[%clk 0:00:21.3]}
55... Nc5+ {[%clk 0:00:12.6]} 56. Ke3 {[%clk 0:00:20.8]} 56... Nb3 {[%clk
0:00:06.1]} 57. Rd1 {[%clk 0:00:19.7]} 57... a5 {[%clk 0:00:06.6]} 58. Rd8
{[%clk 0:00:14.9]} 58... Kb5 {[%clk 0:00:07]} 59. Bxc7 {[%clk 0:00:13]} 59...
Rb7 {[%clk 0:00:08.3]} 60. Be5 {[%clk 0:00:11.3]} 60... a4 {[%clk 0:00:09.4]}
61. Ra8 {[%clk 0:00:12.7]} 61... Nc5 {[%clk 0:00:09.4]} 62. Kd4 {[%clk 0:00:12]}
62... Rd7+ {[%clk 0:00:09.7]} 63. Ke3 {[%clk 0:00:11.6]} 63... Re7 {[%clk
0:00:10.1]} 64. Kd4 {[%clk 0:00:10.6]} 64... Rd7+ {[%clk 0:00:11.5]} 65. Ke3
{[%clk 0:00:11.7]} 65... Kc4 {[%clk 0:00:13.4]} 66. Bd4 {[%clk 0:00:12.3]} 66...
Re7+ {[%clk 0:00:12.1]} 67. Kf3 {[%clk 0:00:13]} 67... Nb3 {[%clk 0:00:04.8]}
68. Rxa4+ {[%clk 0:00:12.8]} 68... Kd3 {[%clk 0:00:06.4]} 69. Ra6 {[%clk
0:00:11.9]} 69... Nd2+ {[%clk 0:00:06.8]} 70. Kg2 {[%clk 0:00:11.8]} 70... Nc4
{[%clk 0:00:05.9]} 71. Rf6 {[%clk 0:00:11.3]} 71... Rd7 {[%clk 0:00:06.8]} 72.
Rf3+ {[%clk 0:00:11.2]} 72... Ke2 {[%clk 0:00:07.7]} 73. Rf6 {[%clk 0:00:10.5]}
73... Kd3 {[%clk 0:00:08.4]} 74. f3 {[%clk 0:00:09.9]} 74... Na3 {[%clk
0:00:07.4]} 75. g4 {[%clk 0:00:10.3]} 75... Nc2 {[%clk 0:00:08.6]} 76. gxh5
{[%clk 0:00:09]} 76... gxh5 {[%clk 0:00:10.5]} 77. Rf5 {[%clk 0:00:06.4]} 77...
Rxd4 {[%clk 0:00:09.4]} 78. cxd4 {[%clk 0:00:08.3]} 78... Ne3+ {[%clk 0:00:10]}
79. Kg3 {[%clk 0:00:06.8]} 79... Nxf5+ {[%clk 0:00:11]} 80. Kf4 {[%clk 0:00:07]}
80... Nxh4 {[%clk 0:00:08.8]} 81. d5 {[%clk 0:00:06.7]} 81... Ng6+ {[%clk
0:00:07]} 82. Kg5 {[%clk 0:00:08]} 82... h4 {[%clk 0:00:06.4]} 83. d6 {[%clk
0:00:06.8]} 83... Nf8 {[%clk 0:00:06]} 84. Kxh4 {[%clk 0:00:07.1]} 84... Kd4
{[%clk 0:00:07.5]} 85. Kg5 {[%clk 0:00:04.2]} 85... Ke5 {[%clk 0:00:08.8]} 86.
f4+ {[%clk 0:00:02.3]} 86... Ke6 {[%clk 0:00:09]} 87. f5+ {[%clk 0:00:03.2]}
87... Ke5 {[%clk 0:00:09.3]} 88. Kh5 {[%clk 0:00:03.1]} 88... Kf6 {[%clk
0:00:09.8]} 89. Kg4 {[%clk 0:00:03.6]} 89... Nd7 {[%clk 0:00:11.7]} 90. Kf4
{[%clk 0:00:04.8]} 90... Nb8 {[%clk 0:00:12.8]} 91. Ke4 {[%clk 0:00:06.2]} 91...
Nd7 {[%clk 0:00:12.6]} 92. Kf4 {[%clk 0:00:07.4]} 92... Nc5 {[%clk 0:00:13.2]}
93. Kg4 {[%clk 0:00:07.5]} 93... Nd3 {[%clk 0:00:13.6]} 94. d7 {[%clk
0:00:07.2]} 94... Ne5+ {[%clk 0:00:14.6]} 95. Kf4 {[%clk 0:00:07.2]} 95... Nxd7
{[%clk 0:00:16.5]} 96. Ke4 {[%clk 0:00:09]} 96... Nc5+ {[%clk 0:00:17.4]} 97.
Kf4 {[%clk 0:00:10.3]} 97... Nb3 {[%clk 0:00:18]} 98. Kg4 {[%clk 0:00:10.7]}
98... Na5 {[%clk 0:00:19.6]} 99. Kf4 {[%clk 0:00:11.8]} 99... Nc6 {[%clk
0:00:21.4]} 0-1

[Event "*** Titled Tuesday 3|2 Blitz"]
[Site "Chess.com"]
[Date "2017.03.07"]
[Round "4"]
[White "AlexanderL"]
[Black "afgano29"]
[Result "0-1"]
[WhiteElo "2571"]
[BlackElo "2426"]
[TimeControl "180+2"]
[EndTime "14:00:15 PST"]
[Termination "afgano29 won by resignation"]

1. d4 {[%clk 0:03:02]} 1... Nf6 {[%clk 0:02:59.5]} 2. c4 {[%clk 0:03:03]} 2...
g6 {[%clk 0:03:00.3]} 3. Nc3 {[%clk 0:03:03.3]} 3... d5 {[%clk 0:03:01.3]} 4.
Bf4 {[%clk 0:03:04]} 4... Bg7 {[%clk 0:03:01.6]} 5. e3 {[%clk 0:03:05.4]} 5...
O-O {[%clk 0:03:02]} 6. Rc1 {[%clk 0:03:06.9]} 6... c5 {[%clk 0:02:46.9]} 7.
dxc5 {[%clk 0:02:59.2]} 7... Be6 {[%clk 0:02:47.6]} 8. Nf3 {[%clk 0:02:54.3]}
8... Nc6 {[%clk 0:02:48]} 9. Nd4 {[%clk 0:02:51.4]} 9... Nxd4 {[%clk 0:02:37.8]}
10. exd4 {[%clk 0:02:51.7]} 10... dxc4 {[%clk 0:02:38.1]} 11. Be2 {[%clk
0:02:53.1]} 11... Nd5 {[%clk 0:01:54.4]} 12. Nxd5 {[%clk 0:02:43.4]} 12... Qxd5
{[%clk 0:01:53.4]} 13. Bf3 {[%clk 0:02:29.4]} 13... Qxd4 {[%clk 0:01:53.5]} 14.
Qxd4 {[%clk 0:02:29.9]} 14... Bxd4 {[%clk 0:01:54.6]} 15. Bxb7 {[%clk
0:02:31.6]} 15... Bxb2 {[%clk 0:01:43.5]} 16. Rc2 {[%clk 0:02:32.3]} 16... c3
{[%clk 0:01:29.4]} 17. Bxa8 {[%clk 0:02:26.8]} 17... Rxa8 {[%clk 0:01:31.3]} 18.
Be5 {[%clk 0:02:23.5]} 18... Bf5 {[%clk 0:01:23.2]} 19. Bxc3 {[%clk 0:01:52.7]}
19... Bxc2 {[%clk 0:01:21]} 20. Bxb2 {[%clk 0:01:53.9]} 20... Rb8 {[%clk
0:01:09.1]} 21. Bc1 {[%clk 0:01:40.9]} 21... Rb5 {[%clk 0:01:09.3]} 22. Kd2
{[%clk 0:01:32.6]} 22... Bf5 {[%clk 0:00:49.6]} 23. Ba3 {[%clk 0:01:23.3]} 23...
Ra5 {[%clk 0:00:47.7]} 24. Bb4 {[%clk 0:01:24.2]} 24... Rxa2+ {[%clk 0:00:48.2]}
25. Ke3 {[%clk 0:01:25.5]} 25... a5 {[%clk 0:00:45.3]} 26. Bc3 {[%clk
0:01:26.7]} 26... Rc2 {[%clk 0:00:42.2]} 27. Kd4 {[%clk 0:01:23.5]} 27... e5+
{[%clk 0:00:31.9]} 28. Kc4 {[%clk 0:01:24.8]} 28... f6 {[%clk 0:00:28.1]} 29. f4
{[%clk 0:01:11]} 29... exf4 {[%clk 0:00:26.5]} 30. c6 {[%clk 0:01:10.5]} 30...
Rxg2 {[%clk 0:00:23.2]} 31. c7 {[%clk 0:01:07.6]} 31... Kf7 {[%clk 0:00:23]} 32.
Rd1 {[%clk 0:00:52.9]} 32... Rxh2 {[%clk 0:00:18.9]} 33. Rd6 {[%clk 0:00:53.4]}
33... Ke7 {[%clk 0:00:09.7]} 34. Rxf6 {[%clk 0:00:54.1]} 34... Kd7 {[%clk
0:00:10.9]} 35. Rf7+ {[%clk 0:00:55.1]} 35... Kc8 {[%clk 0:00:12]} 36. Kd4
{[%clk 0:00:36.4]} 36... Rc2 {[%clk 0:00:11.9]} 37. Bxa5 {[%clk 0:00:37]} 37...
f3 {[%clk 0:00:12.8]} 38. Rf8+ {[%clk 0:00:33.2]} 38... Kb7 {[%clk 0:00:12]} 39.
Rb8+ {[%clk 0:00:32.6]} 39... Ka6 {[%clk 0:00:12.1]} 40. Ra8+ {[%clk 0:00:31.7]}
40... Kb7 {[%clk 0:00:12.9]} 41. Rb8+ {[%clk 0:00:31.6]} 41... Ka7 {[%clk
0:00:14.1]} 42. Bb6+ {[%clk 0:00:15.2]} 42... Ka6 {[%clk 0:00:14.7]} 43. Bc5
{[%clk 0:00:08.9]} 43... f2 {[%clk 0:00:09.2]} 44. Rb6+ {[%clk 0:00:10.2]} 44...
Ka5 {[%clk 0:00:10]} 45. Rb1 {[%clk 0:00:11.8]} 45... Rd2+ {[%clk 0:00:09]} 46.
Ke3 {[%clk 0:00:10.2]} 46... Rc2 {[%clk 0:00:08.5]} 47. Bb6+ {[%clk 0:00:09.4]}
47... Ka6 {[%clk 0:00:09.5]} 48. Bd4 {[%clk 0:00:06.4]} 48... Rxc7 {[%clk
0:00:09.6]} 49. Ra1+ {[%clk 0:00:06.8]} 49... Kb5 {[%clk 0:00:10.3]} 50. Kxf2
{[%clk 0:00:08.2]} 50... Rc2+ {[%clk 0:00:10.5]} 51. Ke3 {[%clk 0:00:08.8]}
51... Kc4 {[%clk 0:00:11.5]} 52. Ra4+ {[%clk 0:00:10]} 52... Kd5 {[%clk
0:00:12.4]} 53. Ra5+ {[%clk 0:00:11.5]} 53... Ke6 {[%clk 0:00:13.5]} 54. Ra6+
{[%clk 0:00:13]} 54... Kd5 {[%clk 0:00:11.8]} 55. Ra5+ {[%clk 0:00:14.2]} 55...
Kc6 {[%clk 0:00:11.8]} 56. Ra6+ {[%clk 0:00:13]} 56... Kb5 {[%clk 0:00:12.9]}
57. Rb6+ {[%clk 0:00:14.4]} 57... Ka5 {[%clk 0:00:13.7]} 58. Rb8 {[%clk
0:00:14.6]} 58... Rc6 {[%clk 0:00:12.9]} 59. Kf4 {[%clk 0:00:14.8]} 59... Re6
{[%clk 0:00:13.5]} 60. Kg5 {[%clk 0:00:15.7]} 60... Re4 {[%clk 0:00:14.1]} 61.
Bf6 {[%clk 0:00:16.1]} 61... h5 {[%clk 0:00:14.8]} 62. Kh6 {[%clk 0:00:16.3]}
62... h4 {[%clk 0:00:15]} 63. Bd8+ {[%clk 0:00:17.4]} 63... Ka4 {[%clk
0:00:14.9]} 64. Bc7 {[%clk 0:00:18.6]} 64... h3 {[%clk 0:00:13.1]} 65. Kg5
{[%clk 0:00:19.9]} 65... Rg4+ {[%clk 0:00:13.4]} 66. Kf6 {[%clk 0:00:21.3]}
66... Rg2 {[%clk 0:00:13.7]} 67. Be5 {[%clk 0:00:18.4]} 67... Be4 {[%clk
0:00:12]} 68. Rh8 {[%clk 0:00:14.1]} 68... Bf5 {[%clk 0:00:12.9]} 69. Rb8 {[%clk
0:00:15]} 69... Rf2 {[%clk 0:00:13.2]} 70. Kg5 {[%clk 0:00:13.7]} 70... Be4
{[%clk 0:00:12.5]} 71. Bg3 {[%clk 0:00:09.8]} 71... Rg2 {[%clk 0:00:05.8]} 72.
Kf4 {[%clk 0:00:11.2]} 72... Bf5 {[%clk 0:00:04.9]} 73. Kf3 {[%clk 0:00:10.5]}
73... Rc2 {[%clk 0:00:05.3]} 74. Be5 {[%clk 0:00:08.3]} 74... Rc4 {[%clk
0:00:05.4]} 75. Kg3 {[%clk 0:00:08.7]} 75... Rc5 {[%clk 0:00:05.2]} 76. Bf4
{[%clk 0:00:07.7]} 76... Rc2 {[%clk 0:00:06.1]} 77. Rh8 {[%clk 0:00:06.4]} 77...
Rg2+ {[%clk 0:00:06.6]} 78. Kf3 {[%clk 0:00:07.3]} 78... g5 {[%clk 0:00:06.1]}
79. Bg3 {[%clk 0:00:08.6]} 79... g4+ {[%clk 0:00:06]} 80. Kf4 {[%clk 0:00:09.5]}
80... Bd7 {[%clk 0:00:07]} 81. Rh7 {[%clk 0:00:10.3]} 81... Be6 {[%clk
0:00:05.9]} 82. Rh6 {[%clk 0:00:11.6]} 82... Bc8 {[%clk 0:00:05.8]} 83. Rh8
{[%clk 0:00:12.8]} 83... Rc2 {[%clk 0:00:07]} 84. Kg5 {[%clk 0:00:05.7]} 84...
Kb3 {[%clk 0:00:07.6]} 85. Bf4 {[%clk 0:00:06.6]} 85... Rc4 {[%clk 0:00:05.9]}
86. Bg3 {[%clk 0:00:06.2]} 86... Kc2 {[%clk 0:00:06.5]} 87. Rd8 {[%clk
0:00:07.1]} 87... Be6 {[%clk 0:00:05.5]} 88. Rd6 {[%clk 0:00:07.9]} 88... Re4
{[%clk 0:00:06.2]} 89. Rd8 {[%clk 0:00:08.6]} 89... Re3 {[%clk 0:00:07]} 90. Kh4
{[%clk 0:00:09.4]} 90... Bf5 {[%clk 0:00:06.4]} 91. Rd5 {[%clk 0:00:09.8]} 91...
Be6 {[%clk 0:00:07]} 92. Rd8 {[%clk 0:00:10.7]} 92... Re4 {[%clk 0:00:08]} 93.
Kg5 {[%clk 0:00:10.9]} 93... Bc4 {[%clk 0:00:08.9]} 94. Rd7 {[%clk 0:00:08.7]}
94... Bd3 {[%clk 0:00:09.7]} 95. Rf7 {[%clk 0:00:08.3]} 95... Kd2 {[%clk
0:00:10.3]} 96. Rf4 {[%clk 0:00:09.5]} 96... Rxf4 {[%clk 0:00:10.4]} 97. Kxf4
{[%clk 0:00:10.8]} 97... Be2 {[%clk 0:00:10.9]} 98. Bh2 {[%clk 0:00:12.2]} 98...
Ke1 {[%clk 0:00:11.3]} 99. Kg3 {[%clk 0:00:04.4]} 99... Kf1 {[%clk 0:00:12.3]}
100. Kf4 {[%clk 0:00:02.6]} 100... Kg2 {[%clk 0:00:12.9]} 101. Bg3 {[%clk
0:00:02.8]} 0-1

[Event "*** Titled Tuesday 3|2 Blitz"]
[Site "Chess.com"]
[Date "2017.03.07"]
[Round "5"]
[White "Gabix_94"]
[Black "Danhy"]
[Result "1-0"]
[WhiteElo "2508"]
[BlackElo "2349"]
[TimeControl "180+2"]
[EndTime "14:03:59 PST"]
[Termination "Gabix_94 won by resignation"]

1. e4 {[%clk 0:03:02]} 1... c5 {[%clk 0:03:00.9]} 2. Nf3 {[%clk 0:03:02.4]} 2...
e6 {[%clk 0:03:02]} 3. d4 {[%clk 0:03:03.6]} 3... cxd4 {[%clk 0:03:02.7]} 4.
Nxd4 {[%clk 0:03:05.5]} 4... a6 {[%clk 0:03:03.7]} 5. Nc3 {[%clk 0:03:06.9]}
5... Qc7 {[%clk 0:03:05.2]} 6. Be2 {[%clk 0:03:08]} 6... b5 {[%clk 0:03:06.3]}
7. O-O {[%clk 0:03:09]} 7... Bb7 {[%clk 0:03:07.2]} 8. Bf3 {[%clk 0:03:10.6]}
8... Nc6 {[%clk 0:03:06.8]} 9. Re1 {[%clk 0:03:07.3]} 9... d6 {[%clk 0:02:53.1]}
10. a4 {[%clk 0:03:02.3]} 10... b4 {[%clk 0:02:50]} 11. Nxc6 {[%clk 0:03:03.5]}
11... Bxc6 {[%clk 0:02:46.1]} 12. Nd5 {[%clk 0:03:04.6]} 12... Qb7 {[%clk
0:02:43]} 13. Bf4 {[%clk 0:02:49.4]} 13... Nf6 {[%clk 0:02:25.1]} 14. Qd2 {[%clk
0:02:43.2]} 14... Bxd5 {[%clk 0:02:03.8]} 15. exd5 {[%clk 0:02:42.1]} 15... e5
{[%clk 0:02:04.9]} 16. Bxe5 {[%clk 0:02:42.3]} 16... dxe5 {[%clk 0:02:03.7]} 17.
Rxe5+ {[%clk 0:02:44.2]} 17... Kd8 {[%clk 0:02:05.2]} 18. d6 {[%clk 0:02:45.1]}
18... Qa7 {[%clk 0:02:04.2]} 19. Re7 {[%clk 0:02:39.3]} 19... Bxe7 {[%clk
0:02:01.2]} 20. dxe7+ {[%clk 0:02:41.2]} 20... Kxe7 {[%clk 0:02:02.7]} 21. Qxb4+
{[%clk 0:02:40.8]} 21... Kd8 {[%clk 0:01:53]} 22. Rd1+ {[%clk 0:02:40.1]} 1-0

[Event "*** Titled Tuesday 3|2 Blitz"]
[Site "Chess.com"]
[Date "2017.03.07"]
[Round "5"]
[White "kleinebeer98"]
[Black "jncool68"]
[Result "1-0"]
[WhiteElo "2476"]
[BlackElo "2518"]
[TimeControl "180+2"]
[EndTime "14:04:26 PST"]
[Termination "kleinebeer98 won by resignation"]

1. e4 {[%clk 0:03:02]} 1... c5 {[%clk 0:03:00.1]} 2. Nf3 {[%clk 0:03:03]} 2...
d6 {[%clk 0:03:01.4]} 3. d4 {[%clk 0:03:04.5]} 3... cxd4 {[%clk 0:03:03.1]} 4.
Nxd4 {[%clk 0:03:06.4]} 4... Nf6 {[%clk 0:03:04.7]} 5. Nc3 {[%clk 0:03:08]} 5...
e6 {[%clk 0:03:06.1]} 6. Rg1 {[%clk 0:03:06.2]} 6... h6 {[%clk 0:02:51.7]} 7. g4
{[%clk 0:03:02.7]} 7... e5 {[%clk 0:02:52.5]} 8. Nb3 {[%clk 0:03:01.5]} 8... Be6
{[%clk 0:02:52.5]} 9. Be3 {[%clk 0:02:53.4]} 9... Be7 {[%clk 0:02:51.7]} 10. h4
{[%clk 0:02:53.9]} 10... d5 {[%clk 0:02:49.3]} 11. exd5 {[%clk 0:02:52.6]} 11...
Nxd5 {[%clk 0:02:49.1]} 12. Nxd5 {[%clk 0:02:54]} 12... Qxd5 {[%clk 0:02:50.1]}
13. Qe2 {[%clk 0:02:55.6]} 13... Nc6 {[%clk 0:02:42.4]} 14. Rd1 {[%clk
0:02:54.5]} 14... Qe4 {[%clk 0:02:38.9]} 15. Bg2 {[%clk 0:02:53.5]} 15... Qa4
{[%clk 0:02:38.7]} 16. a3 {[%clk 0:02:31.1]} 16... O-O {[%clk 0:02:39]} 17. g5
{[%clk 0:02:28.4]} 17... h5 {[%clk 0:02:39.5]} 18. Qxh5 {[%clk 0:02:24.6]} 18...
Bg4 {[%clk 0:02:36.5]} 19. Bxc6 {[%clk 0:02:25.2]} 19... Qxb3 {[%clk 0:02:16.7]}
20. Rxg4 {[%clk 0:02:14.8]} 20... Qxb2 {[%clk 0:02:07.9]} 21. g6 {[%clk
0:02:13.7]} 1-0